Workbook

Sheet Titulní list
A1: Předpokládaný seznam prací a dodávek vzduchotechnických zařízení
A3: Název akce: | B3: MěÚ Turnov, jednací místnost č. 215
A4: Objednatel: | B4: Město Turnov, Antonína Dvořáka 335, 511 01 Turnov, IČ 00276227
A5: Zhotovitel: | B5: Ing. Jan Müller, Javorník 5, 463 43 Proseč pod Ještědem
A6: Vypracoval: | B6: Ing. Kamil Goroš
A7: Místo stavby: | B7: Městský úřad Turnov, Antonína Dvořáka 335
A8: Č. zakázky: | B8: 2023-310/Z71039
A9: Datum: | B9: 4/2023
A10: Stupeň: | B10: DPS
A12: Pozice | B12: Název dílu | C12: MJ | D12: Množství | E12: Poznámka | F12: Cena za MJ
B14: Dodávka celkem | C14: kpl | D14: 1
B15: Montáž celkem | C15: kpl | D15: 1
B16: Doprava celkem | C16: kpl | D16: 1
B17: Přesun hmot celkem | C17: kpl | D17: 1
B18: Hodinové zúčtovací sazby celkem | C18: kpl | D18: 1
B20: Celkem bez DPH - Kč | C20: - | D20: -
B21: Celkem s DPH - Kč | C21: % | D21: 0.21
B23: Poznámka:
B24: Výpis materiálu obsahuje: - VZT jednotku včetně příslušenství, potrubní elektrický předehřívač, potrubní elektrický dohřívač, potrubní síť, izolace, distribuční elementy, tlumiče hluku, montážní materiál. - montáž VZT jednotky, montáž VZT potrubí, vybourání a zapravení otvorů pro prostupy potrubí, dopravu a přesun hmot, - zaregulování, vyzkoušení a oživení systému VZT, měření hluku, zpracování provozních předpisů, dodavatelské dokumentace a dokumentace skutečného provedení. Výpis materiálu neobsahuje: - materiál pro profesi ZTI, napojení na kanalizaci, el. a datovou kabeláž a materiál pro profesi elektro., SDK protipožární konstrukce

Sheet Rozpočet
A1: Pozice | B1: Název dílu | C1: MJ | D1: Množství | E1: Materiál | F1: Materiál celkem | G1: Montáž | H1: Montáž celkem | I1: Cena celkem | J1: Hmotnost | K1: Hmotnost celkem
B2: Zařízení zař.01
B3: Vzduchotechnické jednotky | K3: =SUM(K4:K12) -> 119
A4: 1.1 | B4: Centrální VZT jednotka s rekuperací tepla pro řízené větrání přívod: min. V-500 m3//h; 800 Pa; filtrace G4 odsávání: min. V-500 m3//h; 40 Pa; filtrace G4 rozměry skříně: max. 930x510 mm; výška max. 1100 mm Napětí 230 V / 50 Hz; příkon jednotky 0,34 kW účinnost rekuperace min. 80 % | C4: ks | D4: 1 | J4: 111 | K4: =D4*J4 -> 111
B5: Závěsné silentbloky | C5: ks | D5: 4 | J5: 0 | K5: =D5*J5 -> 0
B6: Kanálové čidlo teploty | C6: ks | D6: 1 | J6: 0 | K6: =D6*J6 -> 0
A7: 1.2 | B7: Externí elektrický předehřívač vzduchu, d 200 m, max příkon 2,0 kW - včetně vestavěných spínacích prvků a teplotních ochran | C7: ks | D7: 1 | J7: 4 | K7: =D7*J7 -> 4
A8: 1.3 | B8: Externí elektrický dohrívač vzduchu, d 200 m, max příkon 2,0 kW - včetně vestavěných spínacích prvků a teplotních ochran | C8: ks | D8: 1 | J8: 4 | K8: 4
A9: 1.4 | B9: Ovladač designový s displejem - potisk základní - bílý (pro regulaci v jednotce | C9: ks | D9: 1 | J9: 0 | K9: 0
B10: Konečná pozice ovladače bude určena při realizaci. Propojovací kabeláž není součástí dodávky VZT. | C10: - | D10: - | J10: - | K10: -
A11: 1.5 | B11: Čidlo CO2, prostorové | C11: ks | D11: 1 | J11: 0 | K11: 0
B12: Konečná pozice čidla bude určena při realizaci. Propojovací kabeláž není součástí dodávky VZT. | C12: - | D12: - | J12: - | K12: -
B13: Kruhové tlumiče hluku | K13: =SUM(K14) -> 107.5
A14: 1.6 | B14: Kruhový tlumič bez jádra, připojovací rozměr d 250 mm, délka 1000 mm, tl. Izolace 100 mm | C14: ks | D14: 5 | J14: 21.5 | K14: =D14*J14 -> 107.5
B15: Tlumiče budou tepelně izolovány lamelovými rohožemi ze skelných vláken s hliníkovou fólií tl. 100 mm | C15: - | D15: - | J15: - | K15: -
B16: Klapky | K16: =SUM(K17) -> 0.4
A17: 1.7 | B17: Zpětná klapka motýlová d 200 mm, do potrubí | C17: ks | D17: 1 | J17: 0.4 | K17: =D17*J17 -> 0.4
B18: Poznámka | C18: - | D18: - | J18: - | K18: -
B19: Koncové prvky | K19: =SUM(K20:K24) -> 22.5
A20: 1.8 | B20: Protidešťová žaluzie 500 x 400 mm, pozink., povrchová úprava dle výběru investora, montážní rám, ochranná siť 10 x 10 mm | C20: ks | D20: 1 | J20: 4.8 | K20: =D20*J20 -> 4.8
A21: 1.9 | B21: Výfuková hlavice, pozink, připojovací rozměr d 250 mm | C21: ks | D21: 1 | J21: 3.6 | K21: =D21*J21 -> 3.6
A22: 1.10 | B22: Textilní výustka půlkruhová 315 mm, celková délka 8000mm, průtok 500 m3/hod, včetně nosných prvků (profil, napínač, závěsy), včetně přechodu, design dle čalounění židlí | C22: ks | D22: 1 | J22: 13 | K22: 13
B23: Konečný design textilní výustky bude odsouhlasen invesotrem. Konečnou polohu výustky zkoordinovat dle pozice stávajících instalací v místnosti. | C23: - | D23: - | J23: - | K23: -
A24: 1.11 | B24: Hliníková odtahová mřížka s pevnými lamelami 400 x 300 mm, s povrchovou úpravou RAL9003, jednořadá, bez regulace, s upínacím rámečkem | C24: ks | D24: 1 | J24: 1.1 | K24: 1.1
B25: Konečná byrva výustky bude odsouhlasena invesotrem. | C25: - | D25: - | J25: - | K25: -
B26: Odvod kondenzátu | K26: =SUM(K27:K28) -> 1.78
A27: 1.12 | B27: Nástavec pro odvod kondenzátu d 160 mm | C27: ks | D27: 1 | J27: 1.5 | K27: =D27*J27 -> 1.5
A28: 1.13 | B28: Sifon plastový s podtlatkovým uzávěrem DN32 | C28: ks | D28: 1 | J28: 0.28 | K28: =D28*J28 -> 0.28
B29: Napojení odvodu kondenzátu na stávající potrubí vnitřní kanalizace (včetně kanalizačního potrubí a připojovací hadice) není součástí dodávky VZT | C29: - | D29: - | J29: - | K29: -
B30: Tepelné izolace | K30: =SUM(K31:K32) -> 244.4
A31: 1.14 | B31: Kaučuková samolepící izolace s hliníkovou fólií tl. 20 mm, λ=0,034 W/m.K | C31: m2 | D31: 25 | J31: 0.776 | K31: =D31*J31 -> 19.4
A32: 1.15 | B32: Lamelová rohož ze skelných vláken s hliníkovou fólií tl. 100 mm, λ=0,035 W/m.K | C32: m2 | D32: 90 | J32: 2.5 | K32: =D32*J32 -> 225
B33: Poznámka | C33: - | D33: - | J33: - | K33: -
B34: Flexibilní potrubí | K34: =SUM(K35) -> 10.45
A35: 1.16 | B35: Tepelně a hlukově izolovaná ohebná hliníková hadice s mikroperforací, d 200 mm, tl. Izolace 25 mm | C35: bm | D35: 9.5 | J35: 1.1 | K35: =D35*J35 -> 10.45
B36: Kruhové potrubí | K36: =SUM(K37:K50) -> 312.9054
A37: 1.17 | B37: Potrubí Spiro pozink, d 200 mm | C37: bm | D37: =(0.5+0.5+0.5+1+0.5+1.5+1.2+0.7+0.7+1.2+1.2)*1.1+3 -> 13.45 | J37: 2.56 | K37: =D37*J37 -> 34.432
A38: 1.18 | B38: Potrubí Spiro pozink, d 250 mm | C38: bm | D38: =(0.5+0.5+0.5+0.5+2+1.5+1.8+1.7+3*3+0.5+0.8+3+3+1.6+3+1.2+3+0.6+0.9+2*3+0.9+0.8+3+1.2+0.8)*1.1+3+3 -> 59.13 | J38: 3.18 | K38: 188.0334
A39: 1.19 | B39: Oblouk segmentový 45°, d 200 mm Pz plech | C39: ks | D39: 2 | J39: 3.18 | K39: 6.36
A40: 1.20 | B40: Oblouk segmentový 90°, d 200 mm Pz plech | C40: ks | D40: 6 | J40: 3.18 | K40: 19.08
A41: 1.21 | B41: Oblouk segmentový 90°, d 250 mm Pz plech | C41: ks | D41: 10 | J41: 3.18 | K41: 31.8
A42: 1.22 | B42: Odbočka T 45 ° d = 200 mm, d1 =200 mm, Pz plech | C42: ks | D42: 1 | J42: 2.8 | K42: 2.8
A43: 1.23 | B43: Přechod osový 160/200 mm, Pz plech | C43: ks | D43: 1 | J43: 0.5 | K43: 0.5
A44: 1.24 | B44: Přechod osový 200/250 mm, Pz plech | C44: ks | D44: 4 | J44: 0.8 | K44: 3.2
A45: 1.25 | B45: Přechod jednostranný 500/400 na pr.250 mm, Pz plech | C45: ks | D45: 1 | J45: 11.1 | K45: 11.1
A46: 1.26 | B46: Přechod jednostranný 400/300 na pr.250 mm, Pz plech | C46: ks | D46: 1 | J46: 7.5 | K46: 7.5
A47: 1.27 | B47: Vnější spojka ke spojování Spiro potrubí d 160 mm | C47: ks | D47: 1 | J47: 0.3 | K47: 0.3
A48: 1.28 | B48: Vnější spojka ke spojování Spiro potrubí d 200 mm | C48: ks | D48: 4 | J48: 0.3 | K48: 1.2
A49: 1.29 | B49: Vnější spojka ke spojování Spiro potrubí d 250 mm | C49: ks | D49: 1 | J49: 0.6 | K49: 0.6
A50: 1.30 | B50: Vnitří spojka ke spojování Spiro potrubí d 250 mm | C50: ks | D50: 10 | J50: 0.6 | K50: 6
B51: Závěsy, závěsné lišty, závitové tyče, kruhové závěsy, hmoždinky, pomocné konstrukce | K51: =SUM(K52) -> 0
A52: 1.31 | B52: Montážní materiál celkem | C52: kpl | D52: 1 | J52: 0 | K52: =D52*J52 -> 0
B53: Závěsy, závěsné lišty, závitové tyče, kruhové závěsy, hmoždinky, pomocné konstrukce, lepící pásky, šrouby, nýty, hmoždinky atd. | C53: - | D53: - | J53: - | K53: -
B54: Zednické výpomoci | K54: =SUM(K55) -> 0
A55: 1.32 | B55: Název položky | C55: kpl | D55: 1 | J55: 0 | K55: =D55*J55 -> 0
B56: Vybourání prostupů pro vedení vzduchotechnického potrubí, vyplnění otvorů, začištění a vymalování | C56: - | D56: - | J56: - | K56: -
B57: Přesun hmot | K57: =SUM(K58) -> 0
A58: 1,33 | B58: Přesun hmot pro vzduchotechniku, výšky do 12 m | C58: t | D58: =(K36+K34+K30+K26+K19+K16+K13+K3)/1000 -> 0.8189354 | J58: 0 | K58: =D58*J58 -> 0
B59: Doprava | K59: =SUM(K60) -> 0
A60: 1,34 | B60: Doprava | C60: kpl | D60: 1 | J60: 0 | K60: =D60*J60 -> 0
B61: Zařízení zař.01 - celkem | K61: =K59+K57+K54+K51+K36+K34+K30+K26+K19+K16+K13+K3 -> 818.9354
B63: Hodinové zúčtovací sazby
B64: Zpracování dodavatelské dokumentace | C64: kpl | D64: 1 | J64: 0 | K64: =D64*J64 -> 0
B65: Příprava ke komplexnímu vyzkoušení, oživení a vyregulování zařízení | C65: kpl | D65: 1 | J65: 0 | K65: =D65*J65 -> 0
B66: Komplexní vyzkoušení zařízení | C66: kpl | D66: 1 | J66: 0 | K66: 0
B67: Vypracování provozních předpisů | C67: kpl | D67: 1 | J67: 0 | K67: 0
B68: Projekt skutečného provedení | C68: kpl | D68: 1 | J68: 0 | K68: 0
B69: Měření hlučnosti zařízení | C69: kpl | D69: 1 | J69: 0 | K69: 0
B70: Hodinové zúčtovací sazby - celkem

Sheet Katalog
A1: Pozice | B1: Název dílu | C1: MJ | D1: Množství | E1: Materiál | F1: Materiál celkem | G1: Montáž | H1: Montáž celkem | I1: Cena celkem | J1: Hmotnost | K1: Hmotnost celkem
B2: Zařízení zař.01
B3: Vzduchotechnické jednotky | F3: =SUM(F4) -> 0 | H3: =SUM(H4) -> 0 | I3: =SUM(I4) -> 0 | K3: =SUM(K4) -> 0
A4: 1.01 | B4: Název položky | C4: ks | E4: 0 | F4: =D4*E4 -> 0 | G4: 0 | H4: =D4*G4 -> 0 | I4: =F4+H4 -> 0 | J4: 0 | K4: =D4*J4 -> 0
B5: Poznámka | C5: - | D5: - | E5: - | F5: - | G5: - | H5: - | I5: - | J5: - | K5: -
B6: Kondenzační jednotky | F6: =SUM(F7) -> 0 | H6: =SUM(H7) -> 0 | I6: =SUM(I7) -> 0 | K6: =SUM(K7) -> 0
A7: 1.01 | B7: Název položky | C7: ks | E7: 0 | F7: =D7*E7 -> 0 | G7: 0 | H7: =D7*G7 -> 0 | I7: =F7+H7 -> 0 | J7: 0 | K7: =D7*J7 -> 0
B8: Poznámka | C8: - | D8: - | E8: - | F8: - | G8: - | H8: - | I8: - | J8: - | K8: -
B9: Nástřešní konstrukce | F9: =SUM(F10) -> 0 | H9: =SUM(H10) -> 0 | I9: =SUM(I10) -> 0 | K9: =SUM(K10) -> 0
A10: 1.01 | B10: Název položky | C10: kpl | E10: 0 | F10: =D10*E10 -> 0 | G10: 0 | H10: =D10*G10 -> 0 | I10: =F10+H10 -> 0 | J10: 0 | K10: =D10*J10 -> 0
B11: Poznámka | C11: - | D11: - | E11: - | F11: - | G11: - | H11: - | I11: - | J11: - | K11: -
B12: Požární klapky | F12: =SUM(F13) -> 0 | H12: =SUM(H13) -> 0 | I12: =SUM(I13) -> 0 | K12: =SUM(K13) -> 0
A13: 1.01 | B13: Název položky | C13: ks | E13: 0 | F13: =D13*E13 -> 0 | G13: 0 | H13: =D13*G13 -> 0 | I13: =F13+H13 -> 0 | J13: 0 | K13: =D13*J13 -> 0
B14: Poznámka | C14: - | D14: - | E14: - | F14: - | G14: - | H14: - | I14: - | J14: - | K14: -
B15: Buňkové tlumiče hluku | F15: =SUM(F16) -> 0 | H15: =SUM(H16) -> 0 | I15: =SUM(I16) -> 0 | K15: =SUM(K16) -> 0
A16: 1.01 | B16: Název položky | C16: ks | E16: 0 | F16: =D16*E16 -> 0 | G16: 0 | H16: =D16*G16 -> 0 | I16: =F16+H16 -> 0 | J16: 0 | K16: =D16*J16 -> 0
B17: Poznámka | C17: - | D17: - | E17: - | F17: - | G17: - | H17: - | I17: - | J17: - | K17: -
B18: Kruhové tlumiče hluku | F18: =SUM(F19) -> 0 | H18: =SUM(H19) -> 0 | I18: =SUM(I19) -> 0 | K18: =SUM(K19) -> 0
A19: 1.01 | B19: Název položky | C19: ks | E19: 0 | F19: =D19*E19 -> 0 | G19: 0 | H19: =D19*G19 -> 0 | I19: =F19+H19 -> 0 | J19: 0 | K19: =D19*J19 -> 0
B20: Poznámka | C20: - | D20: - | E20: - | F20: - | G20: - | H20: - | I20: - | J20: - | K20: -
B21: Regulační klapky s měřením průtoku | F21: =SUM(F22) -> 0 | H21: =SUM(H22) -> 0 | I21: =SUM(I22) -> 0 | K21: =SUM(K22) -> 0
A22: 1.01 | B22: Název položky | C22: ks | E22: 0 | F22: =D22*E22 -> 0 | G22: 0 | H22: =D22*G22 -> 0 | I22: =F22+H22 -> 0 | J22: 0 | K22: =D22*J22 -> 0
B23: Poznámka | C23: - | D23: - | E23: - | F23: - | G23: - | H23: - | I23: - | J23: - | K23: -
B24: Regulační a škrtící klapky | F24: =SUM(F25) -> 0 | H24: =SUM(H25) -> 0 | I24: =SUM(I25) -> 0 | K24: =SUM(K25) -> 0
A25: 1.01 | B25: Název položky | C25: ks | E25: 0 | F25: =D25*E25 -> 0 | G25: 0 | H25: =D25*G25 -> 0 | I25: =F25+H25 -> 0 | J25: 0 | K25: =D25*J25 -> 0
B26: Poznámka | C26: - | D26: - | E26: - | F26: - | G26: - | H26: - | I26: - | J26: - | K26: -
B27: Koncové prvky | F27: =SUM(F28) -> 0 | H27: =SUM(H28) -> 0 | I27: =SUM(I28) -> 0 | K27: =SUM(K28) -> 0
A28: 1.01 | B28: Název položky | C28: ks | E28: 0 | F28: =D28*E28 -> 0 | G28: 0 | H28: =D28*G28 -> 0 | I28: =F28+H28 -> 0 | J28: 0 | K28: =D28*J28 -> 0
B29: Poznámka | C29: - | D29: - | E29: - | F29: - | G29: - | H29: - | I29: - | J29: - | K29: -
B30: Odvod kondenzátu | F30: =SUM(F31) -> 0 | H30: =SUM(H31) -> 0 | I30: =SUM(I31) -> 0 | K30: =SUM(K31) -> 0
A31: 1.01 | B31: Název položky | C31: ks | E31: 0 | F31: =D31*E31 -> 0 | G31: 0 | H31: =D31*G31 -> 0 | I31: =F31+H31 -> 0 | J31: 0 | K31: =D31*J31 -> 0
B32: Poznámka | C32: - | D32: - | E32: - | F32: - | G32: - | H32: - | I32: - | J32: - | K32: -
B33: Požární izolace | F33: =SUM(F34) -> 0 | H33: =SUM(H34) -> 0 | I33: =SUM(I34) -> 0 | K33: =SUM(K34) -> 0
A34: 1.01 | B34: Název položky | C34: m2 | E34: 0 | F34: =D34*E34 -> 0 | G34: 0 | H34: =D34*G34 -> 0 | I34: =F34+H34 -> 0 | J34: 0 | K34: =D34*J34 -> 0
B35: Poznámka | C35: - | D35: - | E35: - | F35: - | G35: - | H35: - | I35: - | J35: - | K35: -
B36: Tepelné izolace | F36: =SUM(F37) -> 0 | H36: =SUM(H37) -> 0 | I36: =SUM(I37) -> 0 | K36: =SUM(K37) -> 0
A37: 1.01 | B37: Název položky | C37: m2 | E37: 0 | F37: =D37*E37 -> 0 | G37: 0 | H37: =D37*G37 -> 0 | I37: =F37+H37 -> 0 | J37: 0 | K37: =D37*J37 -> 0
B38: Poznámka | C38: - | D38: - | E38: - | F38: - | G38: - | H38: - | I38: - | J38: - | K38: -
B39: Flexibilní potrubí | F39: =SUM(F40) -> 0 | H39: =SUM(H40) -> 0 | I39: =SUM(I40) -> 0 | K39: =SUM(K40) -> 0
A40: 1.01 | B40: Název položky | C40: bm | E40: 0 | F40: =D40*E40 -> 0 | G40: 0 | H40: =D40*G40 -> 0 | I40: =F40+H40 -> 0 | J40: 0 | K40: =D40*J40 -> 0
B41: Poznámka | C41: - | D41: - | E41: - | F41: - | G41: - | H41: - | I41: - | J41: - | K41: -
B42: Kruhové potrubí | F42: =SUM(F43) -> 0 | H42: =SUM(H43) -> 0 | I42: =SUM(I43) -> 0 | K42: =SUM(K43) -> 0
A43: 1.01 | B43: Název položky | C43: bm | E43: 0 | F43: =D43*E43 -> 0 | G43: 0 | H43: =D43*G43 -> 0 | I43: =F43+H43 -> 0 | J43: 0 | K43: =D43*J43 -> 0
B44: Poznámka | C44: - | D44: - | E44: - | F44: - | G44: - | H44: - | I44: - | J44: - | K44: -
B45: Čtyřhranné potrubí | F45: =SUM(F46) -> 0 | H45: =SUM(H46) -> 0 | I45: =SUM(I46) -> 0 | K45: =SUM(K46) -> 0
A46: 1.01 | B46: Název položky | C46: bm | E46: 0 | F46: =D46*E46 -> 0 | G46: 0 | H46: =D46*G46 -> 0 | I46: =F46+H46 -> 0 | J46: 0 | K46: =D46*J46 -> 0
B47: Poznámka | C47: - | D47: - | E47: - | F47: - | G47: - | H47: - | I47: - | J47: - | K47: -
B48: Závěsy, závěsné lišty, závitové tyče, kruhové závěsy, hmoždinky, pomocné konstrukce | F48: =SUM(F49) -> 0 | H48: =SUM(H49) -> 0 | I48: =SUM(I49) -> 0 | K48: =SUM(K49) -> 0
A49: 1.01 | B49: Název položky | C49: kpl | E49: 0 | F49: =D49*E49 -> 0 | G49: 0 | H49: =D49*G49 -> 0 | I49: =F49+H49 -> 0 | J49: 0 | K49: =D49*J49 -> 0
B50: Poznámka | C50: - | D50: - | E50: - | F50: - | G50: - | H50: - | I50: - | J50: - | K50: -
B51: Zednické výpomoci | F51: =SUM(F52) -> 0 | H51: =SUM(H52) -> 0 | I51: =SUM(I52) -> 0 | K51: =SUM(K52) -> 0
A52: 1.01 | B52: Název položky | C52: kpl | E52: 0 | F52: =D52*E52 -> 0 | G52: 0 | H52: =D52*G52 -> 0 | I52: =F52+H52 -> 0 | J52: 0 | K52: =D52*J52 -> 0
B53: Poznámka | C53: - | D53: - | E53: - | F53: - | G53: - | H53: - | I53: - | J53: - | K53: -
B54: Přesun hmot | F54: =SUM(F55) -> 0 | H54: =SUM(H55) -> 0 | I54: =SUM(I55) -> 0 | K54: =SUM(K55) -> 0
A55: 1.01 | B55: Název položky | C55: kpl | E55: 0 | F55: =D55*E55 -> 0 | G55: 0 | H55: =D55*G55 -> 0 | I55: =F55+H55 -> 0 | J55: 0 | K55: =D55*J55 -> 0
B56: Poznámka | C56: - | D56: - | E56: - | F56: - | G56: - | H56: - | I56: - | J56: - | K56: -
B57: Doprava | F57: =SUM(F58) -> 0 | H57: =SUM(H58) -> 0 | I57: =SUM(I58) -> 0 | K57: =SUM(K58) -> 0
A58: 1.01 | B58: Název položky | C58: kpl | E58: 0 | F58: =D58*E58 -> 0 | G58: 0 | H58: =D58*G58 -> 0 | I58: =F58+H58 -> 0 | J58: 0 | K58: =D58*J58 -> 0
B59: Poznámka | C59: - | D59: - | E59: - | F59: - | G59: - | H59: - | I59: - | J59: - | K59: -
B60: Hodinové zúčtovací sazby | F60: =SUM(F61) -> 0 | H60: =SUM(H61) -> 0 | I60: =SUM(I61) -> 0 | K60: =SUM(K61) -> 0
A61: 1.01 | B61: Název položky | C61: kpl | E61: 0 | F61: =D61*E61 -> 0 | G61: 0 | H61: =D61*G61 -> 0 | I61: =F61+H61 -> 0 | J61: 0 | K61: =D61*J61 -> 0
B62: Poznámka | C62: - | D62: - | E62: - | F62: - | G62: - | H62: - | I62: - | J62: - | K62: -

Sheet Parametry
A1: Parametry vybraných položek
A2: Doprava | B2: 0.05 | C2: z celkové ceny materiálu
A3: Přesun hmot | B3: 3 | C3: z celkové hmotnosti materiálu
A4: Montážní materiál | B4: 0.045 | C4: z celkové ceny materiálu
A5: Zednické výpomoci | B5: 0.05 | C5: z celkové ceny montáže
